bitfinex-derivatives/quotes_ETHF0:USTF0_20241023
["timestamp","ask_amount","ask_price","bid_price","bid_amount"]
[1729704322710,4.94800691,2510.1,2510.0,0.39874]
[1729704323206,0.39875,2510.0,2509.9,0.39874]
[1729704324113,0.39875,2510.0,2509.6,3.44559]
[1729704324114,0.39878,2509.9,2509.8,0.39876]
[1729704324516,0.39878,2509.8,2509.7,0.39876]
[1729704325219,0.39875,2510.0,2509.9,0.39874]
[1729704327415,0.39875,2510.0,2509.7,0.39877]
[1729704327416,0.39879,2509.8,2509.7,0.39877]
[1729704328109,0.39879,2509.8,2509.6,2.4486]
[1729704328110,3.12,2510.0,2509.6,2.4486]
[1729704328315,0.39877,2509.9,2509.8,0.39876]
[1729704334124,0.39876,2510.0,2509.9,0.39875]
[1729704336640,0.39877,2509.9,2509.8,0.39876]
[1729704338430,3.12,2510.0,2509.6,2.4486]
[1729704338634,0.39883,2509.5,2509.4,0.39882]
[1729704338837,0.39882,2509.6,2509.5,0.39881]
[1729704340437,9.32923807,2509.7,2509.2,46.41957]
[1729704340635,0.39885,2509.4,2509.3,0.39884]
[1729704341332,0.39885,2509.4,2509.2,4.6224]
[1729704341333,3.12,2509.5,2509.2,4.6224]
[1729704341529,3.51883,2509.5,2509.4,0.39884]
[1729704343642,0.39885,2509.4,2509.3,0.39884]
[1729704344237,0.39891,2508.9,2508.8,3.2078]
[1729704344439,3.51891,2508.9,2508.8,3.2078]
[1729704344741,7.83447964,2508.9,2508.8,3.2078]
[1729704344929,14.62896964,2508.9,2508.5,5.4778]
[1729704345125,3.12,2508.7,2508.3,0.39899]
[1729704345342,0.39899,2508.5,2508.4,0.39898]
[1729704345731,0.39901,2508.3,2508.2,3.2078]
[1729704345941,3.51901,2508.3,2508.2,3.2078]
[1729704346135,14.74395439,2508.3,2507.8,3.2078]
[1729704346435,3.51909,2507.9,2507.8,3.2078]
[1729704346734,3.51909,2507.9,2507.8,3.60689]
[1729704346735,7.94804439,2507.9,2507.8,3.60689]
[1729704346931,7.94804439,2507.9,2507.7,0.3991]
[1729704346932,0.3991,2507.8,2507.7,0.3991]
[1729704347333,7.54895439,2507.9,2507.8,0.39909]
[1729704347334,7.94803439,2507.9,2507.8,0.39909]
[1729704348126,7.94803439,2507.9,2507.5,3.2078]
[1729704348127,0.39912,2507.7,2507.6,0.39912]
[1729704348336,0.39912,2507.6,2507.5,3.60694]
[1729704348536,8.05404627,2507.7,2507.6,0.39912]
[1729704348740,4.53493627,2507.7,2507.5,3.2078]
[1729704349039,4.028,2509.6,2507.5,3.2078]
[1729704349040,2.6691,2508.4,2508.3,0.39901]
[1729704349337,3.60677,2508.6,2508.5,0.39898]
[1729704349547,3.2078,2508.6,2508.2,3.12]
[1729704349841,3.60677,2508.6,2508.5,0.39898]
[1729704350144,3.60676,2508.6,2508.5,0.39898]
[1729704351141,3.60677,2508.6,2508.5,0.39898]
[1729704352045,0.399,2508.4,2508.3,0.399]
[1729704352538,0.39904,2508.2,2508.1,0.39904]
[1729704352744,0.39906,2508.0,2507.9,5.10966]
[1729704353133,0.39905,2508.1,2508.0,0.39905]
[1729704355238,0.39906,2508.0,2507.9,4.7106]
[1729704355635,0.39906,2508.0,2507.9,2.3156]
[1729704356136,3.12,2508.2,2507.5,4.20563]
[1729704356448,0.39905,2508.1,2508.0,0.39905]
[1729704356840,4.53385181,2508.1,2508.0,0.39905]
[1729704357241,0.39903,2508.2,2507.8,3.12]
[1729704357242,4.314838,2508.2,2508.1,0.39904]
[1729704357448,3.2078,2508.3,2508.2,0.39903]
[1729704357643,0.39899,2508.5,2508.4,0.39899]
[1729704358043,4.713828,2508.5,2508.4,0.39899]
[1729704358341,3.60677,2508.6,2508.2,2.4721]
[1729704358543,3.60677,2508.6,2508.5,0.39898]
[1729704359843,3.2078,2508.6,2508.5,0.39898]
[1729704360449,4.028,2510.4,2508.5,0.39898]
[1729704360450,3.2078,2509.2,2508.5,7.1064]
[1729704360642,3.2078,2509.2,2509.1,0.39888]
[1729704360947,3.60667,2509.2,2509.1,0.39888]
[1729704361149,0.39891,2509.0,2508.9,0.39891]
[1729704361340,11.7226319,2509.2,2509.0,0.39888]
[1729704361341,0.39889,2509.1,2509.0,0.39888]
[1729704362134,8.1359119,2509.2,2509.1,0.39888]
[1729704362341,3.2078,2509.2,2509.1,0.39888]
[1729704364551,3.60667,2509.2,2509.1,0.39888]
[1729704364851,3.2078,2509.2,2509.1,0.39888]
[1729704365148,3.60667,2509.2,2509.1,0.39888]
[1729704365346,3.2078,2509.2,2509.1,0.39888]
[1729704366048,3.2078,2509.6,2509.2,0.99716]
[1729704366245,0.39878,2509.9,2509.3,6.3278]
[1729704366446,2.2705,2510.0,2509.3,6.3278]
[1729704366447,3.2078,2509.8,2509.3,9.73984]
[1729704366748,3.2078,2509.8,2509.7,0.39879]
[1729704367141,3.60657,2509.8,2509.7,0.39879]
[1729704368247,3.2078,2509.8,2509.7,0.39879]
[1729704368846,8.0776,2510.2,2509.7,0.39879]
[1729704369047,0.39873,2510.1,2510.0,0.39872]
[1729704369247,0.39876,2510.0,2509.9,0.39875]
[1729704370351,11.62082903,2510.0,2509.2,2.4158]
[1729704370547,0.39885,2509.3,2509.2,2.81466]
[1729704370748,0.39887,2509.2,2509.1,0.39888]
[1729704371146,0.99711,2509.4,2508.9,2.9156]
[1729704371147,0.3989,2509.0,2508.9,2.9156]
[1729704371947,0.39889,2509.1,2509.0,0.39888]
[1729704372644,4.36695509,2509.2,2508.9,2.9156]
[1729704372645,0.3989,2509.0,2508.9,2.9156]
[1729704372845,0.3989,2509.0,2508.9,2.5167]
[1729704373153,0.39892,2509.0,2508.9,0.39891]
[1729704373352,0.39893,2508.9,2508.8,0.39892]
[1729704373657,3.2078,2509.1,2508.6,0.39896]
[1729704373956,0.39895,2508.7,2508.6,0.39896]
[1729704374744,0.39899,2508.4,2508.3,0.399]
[1729704375249,8.7761074,2508.7,2508.5,0.39896]
[1729704375250,0.39898,2508.6,2508.5,0.39896]
[1729704375657,7.7786974,2508.7,2508.3,0.39899]
[1729704375658,0.399,2508.4,2508.3,0.39899]
[1729704375856,0.399,2508.4,2508.0,8.0032]
[1729704375857,0.39903,2508.3,2508.2,0.39902]
[1729704376249,0.39903,2508.3,2508.0,4.7954]
[1729704376449,0.39904,2508.2,2508.1,0.39903]
[1729704376762,0.39899,2508.4,2508.3,0.399]
[1729704376949,0.39903,2508.3,2508.2,0.39902]
[1729704377151,5.55456093,2508.7,2508.0,4.7954]
[1729704377152,0.99738,2508.7,2508.0,4.7954]
[1729704377459,0.99738,2508.7,2508.4,0.39899]
[1729704377460,4.79700604,2508.5,2508.4,0.39899]
[1729704377850,0.99738,2508.7,2508.1,0.9976]
[1729704378056,0.39901,2508.4,2508.3,0.399]
[1729704378557,0.39899,2508.5,2508.4,0.39898]
[1729704378762,5.6642,2508.8,2508.2,0.99757]
[1729704378763,0.39897,2508.6,2508.5,0.39896]
[1729704379056,4.7274201,2508.6,2508.5,0.39896]
[1729704379259,0.39897,2508.6,2508.5,0.39896]
[1729704379463,0.39901,2508.4,2508.3,0.399]
[1729704379764,0.39904,2508.2,2508.1,0.39903]
[1729704381560,0.39904,2508.1,2508.0,0.39905]
[1729704382048,8.26294113,2508.1,2507.7,3.2078]
[1729704382255,0.39907,2508.0,2507.9,0.39906]
[1729704382759,0.39909,2507.9,2507.8,0.39908]
[1729704383156,4.7495928,2507.9,2507.8,0.39908]
[1729704383756,4.7495828,2507.9,2507.8,0.39909]
[1729704383962,4.3505028,2507.9,2507.8,0.39909]
[1729704384268,6.12763,2508.2,2508.1,0.39904]
[1729704384760,10.65144579,2508.2,2508.1,0.39904]
[1729704385153,7.44364579,2508.2,2508.1,0.39904]
[1729704386157,4.92284579,2508.2,2508.1,0.39904]
[1729704386465,0.39905,2508.1,2508.0,0.39904]
[1729704386661,0.39909,2507.9,2507.8,0.39908]
[1729704387060,11.025,2507.9,2507.0,3.2078]
[1729704387367,3.2078,2507.6,2507.5,0.39914]
[1729704387957,3.60692,2507.6,2507.5,0.39914]
[1729704388154,3.2078,2507.6,2507.5,0.39914]
[1729704390771,0.39908,2508.0,2507.9,0.39906]
[1729704391268,0.39909,2507.9,2507.8,0.39908]
[1729704391572,4.97003102,2507.9,2507.8,0.39908]
[1729704391972,4.97003102,2507.9,2507.7,2.2978]
[1729704391973,0.39909,2507.8,2507.7,2.2978]
[1729704392268,0.39909,2507.8,2507.7,2.69691]
[1729704392473,0.39909,2507.8,2507.7,2.2978]
[1729704393166,0.39909,2507.8,2507.7,2.69691]
[1729704393363,0.39909,2507.8,2507.7,2.2978]
[1729704393965,0.39909,2507.8,2507.7,2.69691]
[1729704395672,0.39909,2507.8,2507.7,2.2978]
[1729704395974,0.39909,2507.8,2507.7,2.69691]
[1729704396378,0.39909,2507.8,2507.7,2.2978]
[1729704397066,4.57094102,2507.9,2507.7,2.2978]
[1729704397375,3.987,2509.5,2509.0,0.39889]
[1729704397376,3.2078,2509.4,2509.0,0.39889]
[1729704397571,3.2078,2509.4,2508.6,0.99741]
[1729704397572,0.39889,2509.1,2508.7,2.3199]
[1729704397875,4.23043817,2509.0,2508.9,0.39891]
[1729704398079,4.62934817,2509.0,2508.8,0.39893]
[1729704398271,4.62934817,2509.0,2508.7,2.71883]
[1729704398574,4.62934817,2509.0,2508.3,40.8]
[1729704398575,4.23043817,2509.0,2508.3,40.8]
[1729704398780,4.23043817,2509.0,2508.8,0.39892]
[1729704399268,4.23043817,2509.0,2508.4,0.99748]
[1729704399471,4.23043817,2509.0,2508.5,0.39898]
[1729704399775,4.62933817,2509.0,2508.8,0.39893]
[1729704399971,4.23043817,2509.0,2508.8,0.39893]
[1729704400372,4.23043817,2509.0,2508.8,0.39892]
[1729704401071,7.43823817,2509.0,2508.5,3.44684]
[1729704401266,7.43823817,2509.0,2508.5,2.4494]
[1729704401478,4.23043817,2509.0,2508.9,0.39891]
[1729704402669,7.83714817,2509.0,2508.8,0.39892]
[1729704403276,7.83714817,2509.0,2508.6,0.39896]
[1729704403480,7.83714817,2509.0,2508.9,0.39891]
[1729704403680,7.83714817,2509.0,2508.5,7.27684]
[1729704403681,7.43823817,2509.0,2508.5,7.27684]
[1729704403981,7.83714817,2509.0,2508.8,0.39892]
[1729704404181,0.39892,2508.9,2508.5,7.27684]
[1729704404478,3.60671,2509.0,2508.9,0.39891]
[1729704404978,11.83015424,2509.0,2508.9,0.39891]
[1729704405173,11.43124424,2509.0,2508.9,0.39891]
[1729704405573,11.83014424,2509.0,2508.9,0.39891]
[1729704406172,11.43124424,2509.0,2508.9,0.39891]
[1729704406380,4.23784424,2509.0,2508.9,0.39891]
[1729704406884,0.3989,2509.0,2508.9,0.39891]
[1729704407185,4.56884433,2509.0,2508.9,0.39891]
[1729704408277,4.16994433,2509.0,2508.9,0.39891]
[1729704408673,4.98129705,2509.1,2509.0,0.3989]
[1729704408872,0.39889,2509.1,2509.0,0.3989]
[1729704409282,4.98129705,2509.1,2509.0,0.3989]
[1729704409573,4.58240705,2509.1,2509.0,0.3989]
[1729704409777,4.98128705,2509.1,2509.0,0.3989]
[1729704410174,3.2078,2509.2,2508.8,0.99733]
[1729704410374,3.2078,2509.2,2509.1,0.39888]
[1729704411288,3.60667,2509.2,2509.1,0.39888]
[1729704411677,3.2078,2509.2,2509.1,0.39888]
[1729704412578,3.60667,2509.2,2509.1,0.39888]
[1729704412785,3.2078,2509.2,2509.1,0.39888]
[1729704413683,0.39883,2509.5,2509.4,0.39884]
[1729704414078,4.66034637,2509.5,2509.4,0.39884]
[1729704414480,8.24631637,2509.5,2509.0,2.4176]
[1729704414687,3.2078,2509.3,2508.9,2.3257]
[1729704414882,0.39888,2509.2,2509.1,0.39887]
[1729704415081,4.78233922,2509.2,2509.1,0.39887]
[1729704415286,0.39889,2509.1,2509.0,0.39888]
[1729704415587,2.79357,2509.2,2509.1,0.39888]
[1729704415983,10.93932778,2509.2,2509.1,0.39888]
[1729704416482,6.95372778,2509.2,2509.1,0.39888]
[1729704417881,4.16015778,2509.2,2509.1,0.39888]
[1729704418081,3.2078,2509.3,2509.2,0.39887]
[1729704418082,3.60667,2509.3,2509.2,0.39887]
[1729704418485,3.60667,2509.3,2509.1,0.39888]
[1729704418486,4.87280675,2509.2,2509.1,0.39888]
[1729704418683,2.76967,2509.2,2509.1,0.39888]
[1729704419082,7.24360675,2509.2,2509.1,0.39888]
[1729704421485,0.39891,2509.0,2508.9,0.3989]
[1729704421685,2.70808,2509.1,2509.0,0.3989]
[1729704422388,8.1358,2509.1,2507.7,3.2078]
[1729704422687,8.1358,2509.1,2507.6,0.9978]
[1729704422688,3.2078,2508.2,2507.6,0.9978]
[1729704422885,0.39905,2508.1,2508.0,0.39905]
[1729704423080,0.39905,2508.1,2508.0,0.39906]
[1729704423081,4.5631855,2508.1,2508.0,0.39906]
[1729704423493,4.1641355,2508.1,2508.0,0.39906]
[1729704423790,4.5631755,2508.1,2508.0,0.39906]
[1729704423978,4.1641355,2508.1,2508.0,0.39906]
[1729704424183,4.5631755,2508.1,2508.0,0.39906]
[1729704425097,4.1641355,2508.1,2508.0,0.39906]
[1729704425393,3.60684,2508.2,2508.0,0.39905]
[1729704426190,3.2078,2508.2,2508.0,0.39905]
[1729704426391,0.39904,2508.1,2508.0,0.39905]
[1729704427593,0.39906,2508.0,2507.9,0.39906]
[1729704427992,4.22213008,2508.1,2507.6,2.3667]
[1729704428198,4.22213008,2508.1,2507.4,8.99681205]
[1729704428493,4.6033723,2508.1,2507.4,7.8382]
[1729704428793,0.39909,2507.8,2507.7,0.39909]
[1729704432694,0.39912,2507.6,2507.5,41.19913]
[1729704432994,0.39912,2507.6,2507.5,0.39913]
[1729704434088,0.39912,2507.6,2507.4,45.4304]
[1729704434089,0.3991,2507.8,2507.7,0.39909]
[1729704434489,4.6930618,2507.8,2507.7,0.39909]
[1729704434689,0.39912,2507.7,2507.6,0.39911]
[1729704435300,4.2939618,2507.8,2507.4,4.6304]
[1729704435497,4.6930618,2507.8,2507.7,0.39911]
[1729704436497,4.6930618,2507.8,2507.4,4.6304]
[1729704436498,4.2939618,2507.8,2507.4,4.6304]
[1729704436794,0.39913,2507.6,2507.5,0.39912]
[1729704437490,0.39912,2507.7,2507.6,0.39911]
[1729704438692,4.2939618,2507.8,2507.4,4.6304]
[1729704438993,4.6930618,2507.8,2507.7,0.39911]
[1729704439797,0.39912,2507.7,2507.6,0.39911]
[1729704441088,0.39913,2507.6,2507.5,0.39912]
[1729704442593,0.39914,2507.5,2507.4,5.02955]
[1729704442888,3.50914,2507.5,2507.4,4.6304]
[1729704443297,3.50914,2507.5,2506.9,0.99808]
[1729704443298,0.39919,2507.3,2507.2,0.39918]
[1729704443893,0.3992,2507.2,2507.1,0.39919]
[1729704444104,4.10786,2507.5,2507.1,3.9888]
[1729704444292,3.11,2507.3,2506.8,3.36956017]
[1729704444493,3.11,2507.3,2506.1,2.07623193]
[1729704444494,6.3178,2506.9,2506.1,2.3367]
[1729704444794,3.11,2506.6,2506.5,0.3993]
[1729704445191,3.50929,2506.6,2506.4,0.39931]
[1729704445999,3.11,2506.6,2506.3,0.39933]
[1729704446196,3.11,2506.6,2506.2,2.3892]
[1729704446398,3.50929,2506.6,2506.4,0.39931]
[1729704446593,0.39931,2506.5,2506.3,0.39932]
[1729704446899,0.39931,2506.5,2506.2,2.78854]
[1729704447197,0.39933,2506.3,2506.2,2.3892]
[1729704447394,3.2078,2506.6,2506.2,2.3892]
[1729704447696,0.3993,2506.5,2506.3,0.39932]
[1729704447902,0.3993,2506.5,2506.2,2.3892]
[1729704448100,0.3993,2506.5,2506.4,0.39931]
[1729704449507,0.39932,2506.4,2506.2,2.3892]
[1729704449801,0.39933,2506.3,2506.2,2.78854]
[1729704450299,0.39939,2505.9,2505.8,0.16215939]
[1729704450505,6.3178,2506.0,2505.3,3.2078]
[1729704450799,0.39943,2505.7,2505.6,0.39944]
[1729704451295,4.61924007,2505.9,2505.4,2.2287]
[1729704451495,0.39944,2505.7,2505.6,0.39944]
[1729704451700,4.61924007,2505.9,2505.4,2.2287]
[1729704452093,0.39946,2505.5,2505.4,2.62817]
[1729704452295,5.2797,2505.8,2505.3,44.40728]
[1729704452501,5.2797,2505.8,2505.2,0.3995]
[1729704452502,0.39949,2505.3,2505.2,0.3995]
[1729704452701,0.3995,2505.2,2505.1,2.1791]
[1729704452894,4.21596971,2505.3,2505.1,2.1791]
[1729704453106,7.42376971,2505.4,2505.0,40.8]
[1729704453405,7.42376971,2505.4,2505.1,0.39951]
[1729704453406,0.3995,2505.3,2505.1,0.39951]
[1729704453607,4.53519199,2505.3,2504.9,2.33569182]
[1729704453903,4.53519199,2505.3,2505.2,0.3995]
[1729704454101,4.53519199,2505.3,2504.9,43.13569182]
[1729704454304,4.93468199,2505.3,2505.1,0.39951]
[1729704454500,4.93468199,2505.3,2505.2,0.3995]
[1729704454697,4.53519199,2505.3,2505.2,0.3995]
[1729704454900,4.53519199,2505.3,2504.9,42.9791]
[1729704454901,4.93468199,2505.3,2505.1,0.39951]
[1729704455101,4.53519199,2505.3,2504.9,42.9791]
[1729704455301,4.53519199,2505.3,2505.2,0.3995]
[1729704456806,3.5356029,2505.3,2505.2,0.3995]
[1729704457307,2.93586294,2505.3,2505.2,0.3995]
[1729704459206,3.2078,2505.4,2505.1,3.11]
[1729704459409,3.2078,2505.7,2505.3,3.11]
[1729704459712,3.2078,2505.7,2505.6,0.39944]
[1729704459908,3.2078,2505.7,2505.0,4.20661]
[1729704460099,4.55731344,2505.6,2505.4,0.39946]
[1729704460305,0.39946,2505.5,2505.4,0.39946]
[1729704460505,4.95200832,2505.5,2505.4,0.39946]
[1729704460808,8.54374832,2505.5,2504.9,40.8]
[1729704461104,0.39953,2505.1,2504.9,40.8]
[1729704461409,3.2078,2505.4,2504.9,0.39954]
[1729704461410,0.39954,2505.0,2504.9,0.39954]
[1729704462306,0.39952,2505.1,2504.8,0.39957]
[1729704462607,4.63324287,2505.1,2505.0,0.39954]
[1729704462810,4.23372287,2505.1,2505.0,0.39954]
[1729704463205,4.23372287,2505.1,2504.7,7.5215]
[1729704463407,7.34372287,2505.1,2504.7,7.5215]
[1729704463612,0.39957,2504.8,2504.7,3.60738]
[1729704463809,0.39957,2504.9,2504.8,0.39956]
[1729704464008,0.39957,2504.8,2504.7,3.60737]
[1729704464310,4.49510719,2504.8,2504.7,0.39958]
[1729704464619,3.2078,2505.1,2505.0,0.39954]
[1729704464807,3.2078,2505.4,2505.0,0.39954]
[1729704465008,3.2078,2505.4,2505.3,0.39949]
[1729704465509,7.65886167,2505.4,2505.3,0.39949]
[1729704465903,8.05833167,2505.4,2505.3,0.39949]
[1729704466112,8.05834167,2505.4,2505.3,0.39949]
[1729704466307,0.39949,2505.3,2505.2,0.39949]
[1729704466502,7.65886167,2505.4,2505.3,0.39949]
[1729704469012,10.309,2505.4,2505.0,0.39953]
[1729704469218,0.39952,2505.2,2505.1,0.39951]
[1729704469409,10.66927115,2505.4,2505.1,0.39951]
[1729704469613,4.57483325,2505.2,2505.1,0.39951]
[1729704469820,4.17532325,2505.3,2504.8,2.1963]
[1729704470008,0.39954,2505.1,2505.0,0.39953]
[1729704470419,4.17532325,2505.3,2504.8,2.1963]
[1729704470719,3.2078,2505.4,2505.1,3.11]
[1729704471017,3.2078,2505.4,2505.3,0.39949]
[1729704471518,0.39955,2505.0,2504.9,0.39953]
[1729704472719,5.98978,2504.9,2504.1,1.03811596]
[1729704472911,6.3178,2504.2,2503.8,2.2904]
[1729704473111,3.2078,2504.2,2504.1,0.39968]
[1729704473317,4.51191393,2504.1,2504.0,0.3997]
[1729704473523,7.67116926,2504.2,2503.8,2.2904]
[1729704473819,3.2078,2504.2,2504.1,0.39968]
[1729704474316,7.67116926,2504.2,2504.1,0.39968]
[1729704475121,3.2078,2504.2,2504.1,0.39968]
[1729704475818,0.99891,2504.9,2504.1,7.2014]
[1729704475819,3.2078,2504.9,2504.1,7.2014]
[1729704476021,2.2924,2505.5,2504.8,0.39957]
[1729704476022,3.2078,2505.2,2504.8,0.39957]
[1729704476319,3.2078,2505.2,2504.9,4.5127]
[1729704476530,4.57433612,2505.1,2505.0,0.39954]
[1729704476929,4.97385612,2505.1,2505.0,0.39954]
[1729704477225,4.57433612,2505.1,2505.0,0.39954]
[1729704477417,4.97385612,2505.1,2505.0,0.39954]
[1729704477814,0.39954,2505.0,2504.9,4.91224]
[1729704478218,4.90404203,2505.0,2504.9,4.5127]
[1729704478422,4.90404203,2505.0,2504.9,2.3213]
[1729704478928,4.90404203,2505.0,2504.9,2.72085]
[1729704479423,4.90404203,2505.0,2504.9,2.3213]
[1729704479623,4.90404203,2505.0,2504.9,2.72085]
[1729704480436,3.2078,2505.2,2505.1,0.39952]
[1729704484621,3.2078,2505.2,2505.1,4.39152]
[1729704484828,3.60723,2505.7,2505.6,0.39944]
[1729704485225,8.10416528,2505.7,2505.6,0.39944]
[1729704485426,3.60723,2505.7,2505.6,0.39944]
[1729704485625,3.2078,2506.2,2506.0,0.39938]
[1729704485823,3.2078,2506.2,2505.7,2.187]
[1729704486034,4.8352256,2506.0,2505.9,0.39938]
[1729704486223,0.39939,2506.0,2505.9,0.39938]
[1729704486629,4.58375178,2506.0,2505.9,0.39938]
[1729704487432,0.39941,2505.9,2505.7,2.187]
[1729704487634,0.39941,2505.8,2505.7,2.58641]
[1729704487828,4.90941067,2505.8,2505.7,2.58641]
[1729704488331,0.39941,2505.8,2505.7,2.58641]
[1729704489528,0.39941,2505.8,2505.7,2.58642]
[1729704489743,7.0478,2505.9,2505.4,2.1131]
[1729704489933,7.0478,2505.9,2505.4,2.51256]
[1729704489934,0.39946,2505.5,2505.4,2.51256]
[1729704490237,4.90818448,2505.5,2505.4,2.1131]
[1729704490542,0.39949,2505.3,2505.2,2.6692]
[1729704491135,0.39949,2505.3,2505.2,2.2697]
[1729704491439,4.99861386,2505.3,2505.2,2.6692]
[1729704492037,4.99861386,2505.3,2505.2,2.2697]
[1729704492338,4.99861386,2505.3,2505.2,2.6692]
[1729704492537,4.99861386,2505.3,2505.2,2.2697]
[1729704492733,4.99861386,2505.3,2505.1,2.62471]
[1729704492734,0.3995,2505.2,2505.1,2.62471]
[1729704493130,4.90377797,2505.2,2505.1,0.39951]
[1729704493736,4.50427797,2505.2,2505.1,0.39951]
[1729704494132,3.60725,2505.6,2505.5,0.39946]
[1729704494638,7.86150553,2505.6,2505.5,0.39946]
[1729704495031,7.86150553,2505.6,2505.1,0.99878]
[1729704495032,0.39948,2505.4,2505.3,0.39947]
[1729704495535,4.65373553,2505.4,2505.3,0.39947]
[1729704496134,4.25425553,2505.4,2505.0,3.29324]
[1729704496335,4.25425553,2505.4,2505.0,2.2944]
[1729704496538,4.46492721,2505.5,2505.1,0.99881]
[1729704496734,2.1444,2505.8,2505.0,2.2944]
[1729704496735,0.39942,2505.8,2505.7,0.39941]
[1729704497041,4.86436721,2505.7,2505.6,0.39943]
[1729704497533,4.91598028,2505.7,2505.6,0.39943]
[1729704498041,4.51654028,2505.7,2505.6,0.39943]
[1729704498237,4.91596028,2505.7,2505.6,2.70033]
[1729704498543,4.51654028,2505.8,2505.7,0.39941]
[1729704498732,4.33991792,2505.7,2505.6,2.70034]
[1729704498933,3.2078,2505.9,2505.6,2.70034]
[1729704499144,3.2078,2505.9,2505.8,0.39941]
[1729704500235,0.39937,2506.1,2506.0,0.39938]
[1729704500634,4.82573338,2506.1,2506.0,0.39938]
[1729704501333,4.42636338,2506.1,2505.7,40.8]
[1729704501538,0.39941,2505.9,2505.8,0.39939]
[1729704501943,8.00703054,2505.9,2505.8,0.39939]
[1729704502446,11.59802054,2505.9,2505.6,2.3009]
[1729704502743,0.39942,2505.8,2505.7,0.39941]
[1729704503138,4.66965121,2505.8,2505.7,0.39941]
[1729704503736,4.66964121,2505.8,2505.7,0.39941]
[1729704503941,4.27023121,2505.8,2505.7,0.39941]
[1729704504141,4.66964121,2505.8,2505.7,0.39941]
[1729704504737,4.27023121,2505.8,2505.7,0.39941]
[1729704504939,0.39939,2506.0,2505.9,0.39939]
[1729704505343,4.68749944,2506.0,2505.9,0.39939]
[1729704506539,0.39941,2505.9,2505.8,0.3994]
[1729704507743,4.68748944,2506.0,2505.9,0.39939]
[1729704508247,0.39938,2506.0,2505.9,0.39939]
[1729704508447,4.34700434,2506.0,2505.9,0.39939]
[1729704508640,4.74638434,2506.0,2505.9,0.39939]
[1729704508846,0.39938,2506.0,2505.9,0.39939]
[1729704509147,0.39938,2506.1,2506.0,0.39938]
[1729704509537,4.46476693,2506.1,2506.0,0.39938]
[1729704510943,0.3994,2506.0,2505.9,0.39938]
[1729704511149,0.39942,2505.8,2505.7,0.3994]
[1729704512257,0.39942,2505.8,2505.6,2.3009]
[1729704512258,3.2078,2505.9,2505.8,0.39941]
[1729704513953,3.60719,2505.9,2505.8,0.39941]
[1729704515241,3.2078,2505.9,2505.8,0.39941]
[1729704516445,3.60719,2505.9,2505.8,0.39941]
[1729704517446,3.2078,2505.9,2505.8,0.39941]
[1729704519149,3.60719,2505.9,2505.8,0.39941]
[1729704519551,0.39939,2506.0,2505.6,3.29949]
[1729704519760,4.20617,2506.2,2506.0,0.39936]
[1729704519761,0.39937,2506.1,2506.0,0.39936]
[1729704519956,4.41232457,2506.1,2506.0,0.39936]
[1729704520252,3.60714,2506.3,2506.2,0.39933]
[1729704520955,0.39939,2506.0,2505.9,0.39938]
[1729704521255,0.39939,2506.0,2505.7,0.39941]
[1729704521256,0.39942,2505.8,2505.7,0.39941]
[1729704521754,4.42867604,2505.8,2505.7,3.51941]
[1729704522055,3.60719,2506.0,2505.9,0.39939]
[1729704522251,3.2078,2506.0,2505.9,0.39939]
[1729704522552,7.63647604,2506.0,2505.9,0.39939]
[1729704522752,8.03585604,2506.0,2505.9,0.39939]
[1729704522956,7.63647604,2506.0,2505.9,0.39939]
[1729704523159,8.03585604,2506.0,2505.9,0.39939]
[1729704523350,3.2078,2506.3,2505.9,4.38979]
[1729704523548,0.39931,2506.4,2506.1,3.12]
[1729704523751,0.39931,2506.4,2506.3,0.39933]
[1729704524151,4.66653707,2506.4,2506.3,0.39933]
[1729704524351,0.39936,2506.2,2505.8,0.9985]
[1729704524558,0.39936,2506.2,2506.1,0.39935]
[1729704524559,3.2078,2506.2,2506.1,0.39935]
[1729704524762,3.60714,2506.2,2506.1,0.39935]
[1729704524951,7.56265953,2506.2,2506.1,0.39935]
[1729704525254,19.94855,2508.6,2506.5,0.3993]
[1729704525255,3.60709,2506.6,2506.5,0.3993]
[1729704525856,7.59669,2506.6,2506.5,0.3993]
[1729704526049,11.61068189,2506.6,2506.4,0.3993]
[1729704526252,8.02037189,2506.6,2506.5,0.3993]
[1729704526658,4.41328189,2506.6,2506.5,0.3993]
[1729704527062,4.32695783,2506.7,2506.6,0.39928]
[1729704527356,0.99799,2507.2,2506.6,0.39928]
[1729704527357,0.39918,2507.3,2507.2,0.39919]
[1729704527561,3.2078,2507.3,2507.2,0.39919]
[1729704527760,11.4954556,2507.3,2507.2,0.39919]
[1729704527959,7.1966,2507.3,2507.2,0.39919]
[1729704528357,7.5066556,2507.3,2507.2,0.39919]
[1729704528559,7.9058256,2507.3,2507.2,0.39919]
[1729704529158,11.4954556,2507.3,2506.8,2.2402]
[1729704529359,3.2078,2507.0,2506.9,0.39923]
[1729704529766,7.4061214,2507.0,2506.9,0.39923]
[1729704529965,3.2078,2507.0,2506.9,3.51923]
[1729704530660,3.2078,2507.0,2506.9,0.39923]
[1729704530853,7.4490387,2507.0,2506.9,0.39923]
[1729704533063,11.4378387,2507.0,2506.6,2.1172]
[1729704533362,11.4378387,2507.0,2506.5,3.12]
[1729704533363,3.2078,2506.7,2506.4,2.2398]
[1729704533562,3.60708,2506.7,2506.6,0.39928]
[1729704534067,7.97375785,2506.7,2506.6,0.39928]
[1729704534568,7.57447785,2506.7,2506.6,0.39928]
[1729704535068,4.36667785,2506.7,2506.6,2.59668]
[1729704535366,4.62467777,2506.9,2506.6,2.1974]
[1729704535561,4.62467777,2506.9,2506.8,0.39925]
[1729704535756,0.39924,2506.9,2506.8,0.39925]